bitfinex-derivatives/quotes_BTCF0:USTF0_20250915
["timestamp","ask_amount","ask_price","bid_price","bid_amount"]
[1757947795943,1.54534464,114880.0,114870.0,0.39761]
[1757947796142,1.54534464,114880.0,114870.0,0.38484]
[1757947796740,1.54534464,114880.0,114870.0,0.38584]
[1757947798942,0.73095464,114880.0,114870.0,0.39861]
[1757947799148,0.02214998,114880.0,114870.0,0.99250233]
[1757947799341,1.16756231,114880.0,114870.0,0.99250233]
[1757947799537,0.36604231,114880.0,114870.0,0.99250233]
[1757947799943,0.38897231,114880.0,114870.0,0.99250233]
[1757947800146,0.36604231,114880.0,114870.0,0.99250233]
[1757947800346,0.73286464,114880.0,114870.0,0.64861]
[1757947801047,0.74589464,114880.0,114870.0,0.64861]
[1757947801254,0.74589464,114880.0,114870.0,0.38584]
[1757947802455,0.74589464,114880.0,114870.0,0.38484]
[1757947802753,0.74689464,114880.0,114870.0,0.38484]
[1757947803053,0.74889464,114880.0,114870.0,0.38384]
[1757947803958,1.53738464,114880.0,114870.0,0.39661]
[1757947804345,1.55041464,114880.0,114870.0,0.39661]
[1757947806353,0.73586464,114880.0,114870.0,0.39661]
[1757947806554,0.36904231,114880.0,114870.0,0.74050233]
[1757947806859,0.36904231,114880.0,114870.0,0.99050233]
[1757947807159,0.003,114880.0,114870.0,1.79202233]
[1757947807752,0.003,114880.0,114870.0,1.87904513]
[1757947808548,0.002,114880.0,114870.0,1.87904513]
[1757947809154,0.002,114880.0,114870.0,2.22293746]
[1757947809355,0.0001,114890.0,114880.0,0.03377]
[1757947809661,1.01409713,114900.0,114890.0,0.03377]
[1757947809662,0.39291332,114900.0,114890.0,0.03377]
[1757947809864,0.77186492,114900.0,114890.0,0.39457]
[1757947810359,0.75883492,114900.0,114890.0,0.39457]
[1757947810753,0.4063164,114900.0,114890.0,0.73846233]
[1757947811358,0.3833864,114900.0,114890.0,0.73846233]
[1757947811670,0.36125713,114900.0,114890.0,0.73846233]
[1757947811856,0.0173648,114900.0,114890.0,1.53998233]
[1757947812054,0.0173648,114900.0,114890.0,1.78998233]
[1757947812559,0.0193648,114900.0,114890.0,1.78998233]
[1757947813861,0.0223648,114900.0,114890.0,1.78998233]
[1757947814258,0.005,114900.0,114890.0,1.78998233]
[1757947814559,0.005,114900.0,114890.0,2.22088226]
[1757947814560,0.003,114900.0,114890.0,2.22088226]
[1757947814756,0.001,114900.0,114890.0,2.22088226]
[1757947814955,0.001,114900.0,114890.0,1.41936226]
[1757947815262,0.001,114900.0,114890.0,2.28987722]
[1757947815559,0.001,114900.0,114890.0,2.22080226]
[1757947816053,0.0001,114910.0,114900.0,0.087]
[1757947816253,0.0001,114920.0,114910.0,0.03377]
[1757947816455,0.47518328,114930.0,114920.0,0.03377]
[1757947816655,0.47508328,114930.0,114920.0,0.39457]
[1757947816856,0.49714612,114930.0,114920.0,0.39457]
[1757947817263,0.74713764,114930.0,114920.0,0.3818]
[1757947817860,0.75113764,114930.0,114920.0,0.3818]
[1757947819259,0.73208328,114930.0,114920.0,0.3818]
[1757947820964,0.75412065,114930.0,114920.0,0.3818]
[1757947821168,0.73208328,114930.0,114920.0,0.3818]
[1757947822865,0.73208328,114930.0,114920.0,0.39457]
[1757947823964,0.71905328,114930.0,114920.0,0.73846233]
[1757947824166,0.71905328,114930.0,114920.0,0.39457]
[1757947825163,0.35089233,114930.0,114920.0,0.73846233]
[1757947825466,0.007,114930.0,114920.0,1.08235466]
[1757947825971,0.007,114930.0,114920.0,1.16933956]
[1757947826468,0.007,114930.0,114920.0,1.08235466]
[1757947826673,0.007,114930.0,114920.0,1.53974233]
[1757947826874,0.007,114930.0,114920.0,0.73846233]
[1757947827167,0.35089233,114930.0,114920.0,1.53974233]
[1757947827467,0.35089233,114930.0,114920.0,1.88363466]
[1757947827767,0.007,114930.0,114920.0,1.53974233]
[1757947828269,0.37322233,114930.0,114920.0,1.53970233]
[1757947828668,0.37322233,114930.0,114920.0,1.19581]
[1757947828965,0.37322233,114930.0,114920.0,1.53970233]
[1757947829762,0.37322233,114930.0,114920.0,1.88359466]
[1757947830268,0.37322233,114930.0,114920.0,1.53970233]
[1757947830770,0.007,114930.0,114920.0,1.97053956]
[1757947830961,0.007,114930.0,114920.0,2.22053956]
[1757947832467,0.0001,114940.0,114920.0,2.22053956]
[1757947832670,0.0001,114940.0,114930.0,0.73936233]
[1757947832971,0.43674564,114950.0,114940.0,0.03467]
[1757947833271,0.43664564,114950.0,114940.0,0.73936233]
[1757947833867,0.45848741,114950.0,114940.0,0.38233]
[1757947834972,0.11459508,114950.0,114940.0,0.38233]
[1757947835275,0.45848741,114950.0,114940.0,0.38233]
[1757947835773,0.45948741,114950.0,114940.0,0.38233]
[1757947835968,0.48138304,114950.0,114940.0,0.38233]
[1757947836173,0.001,114950.0,114940.0,1.17022436]
[1757947836470,0.004,114950.0,114940.0,1.17022436]
[1757947837175,0.004,114950.0,114940.0,1.42022436]
[1757947838069,0.003,114950.0,114940.0,1.42022436]
[1757947838274,0.003,114950.0,114940.0,1.42122436]
[1757947838576,0.003,114950.0,114940.0,1.44118947]
[1757947838971,0.36186381,114960.0,114950.0,0.01314]
[1757947839173,0.01787148,114960.0,114950.0,1.54040233]
[1757947839568,0.38409381,114960.0,114950.0,0.73936233]
[1757947839764,0.99133614,114960.0,114950.0,0.38233]
[1757947839969,1.01324212,114960.0,114950.0,0.38233]
[1757947840174,1.01524212,114960.0,114950.0,0.38233]
[1757947842983,1.35913445,114960.0,114950.0,0.3608]
[1757947843276,1.81620212,114960.0,114950.0,0.38233]
[1757947843873,1.47185269,114960.0,114950.0,0.38233]
[1757947844073,1.81528792,114960.0,114950.0,0.38233]
[1757947844974,1.01432792,114960.0,114950.0,0.38233]
[1757947845173,0.67089269,114960.0,114950.0,0.38233]
[1757947847078,0.42089269,114960.0,114950.0,0.38233]
[1757947847765,0.06410746,114960.0,114950.0,0.39547]
[1757947847970,0.40754269,114960.0,114950.0,0.39547]
[1757947848578,0.04177746,114960.0,114950.0,0.73890523]
[1757947848983,0.06410746,114960.0,114950.0,0.39547]
[1757947849478,0.42089269,114960.0,114950.0,0.38233]
[1757947850074,0.76432792,114960.0,114950.0,0.38233]
[1757947850372,1.01432792,114960.0,114950.0,0.3608]
[1757947850573,1.84642819,114960.0,114950.0,0.3608]
[1757947850778,0.01335,114950.0,114940.0,0.3609]
[1757947850978,0.4103502,114950.0,114940.0,0.3608]
[1757947851278,0.43225618,114950.0,114940.0,0.3608]
[1757947852073,0.43225618,114950.0,114940.0,0.3618]
[1757947852678,1.23317618,114950.0,114940.0,0.3618]
[1757947852884,1.23417618,114950.0,114940.0,0.3608]
[1757947853775,1.23417618,114950.0,114940.0,0.38215]
[1757947853971,1.23717618,114950.0,114940.0,0.38215]
[1757947854184,1.23717618,114950.0,114940.0,0.3608]
[1757947854781,1.23717618,114950.0,114940.0,0.38215]
[1757947856185,1.20594121,114950.0,114940.0,0.38215]
[1757947857386,1.23717618,114950.0,114940.0,0.38215]
[1757947857592,0.43625618,114950.0,114940.0,0.38215]
[1757947857886,1.23721618,114950.0,114940.0,0.38215]
[1757947858286,1.20598121,114950.0,114940.0,0.38215]
[1757947858591,1.23721618,114950.0,114940.0,0.38215]
[1757947860190,0.43625618,114950.0,114940.0,0.38215]
[1757947860488,1.20598121,114950.0,114940.0,0.38215]
[1757947861585,0.40502121,114950.0,114940.0,0.38215]
[1757947861889,1.20598121,114950.0,114940.0,0.38215]
[1757947863087,0.40502121,114950.0,114940.0,0.38215]
[1757947863491,1.20598121,114950.0,114940.0,0.38215]
[1757947863788,0.40502121,114950.0,114940.0,0.38215]
[1757947863990,1.20598121,114950.0,114940.0,0.38215]
[1757947864187,0.40502121,114950.0,114940.0,0.38215]
[1757947864383,0.04823598,114950.0,114940.0,0.39517]
[1757947864588,0.04823598,114950.0,114940.0,0.73860523]
[1757947864890,0.04716456,114950.0,114940.0,0.73860523]
[1757947865188,0.04716456,114950.0,114940.0,0.39517]
[1757947865488,0.40325979,114950.0,114940.0,0.38215]
[1757947865890,0.40325979,114950.0,114940.0,0.3608]
[1757947866389,0.40325979,114950.0,114940.0,0.38237]
[1757947866588,0.40325979,114950.0,114940.0,0.3608]
[1757947866887,0.40225979,114950.0,114940.0,0.3608]
[1757947867090,0.39925979,114950.0,114940.0,0.38237]
[1757947867291,0.40125979,114950.0,114940.0,0.38237]
[1757947867793,0.40225979,114950.0,114940.0,0.38237]
[1757947868982,0.40225979,114950.0,114940.0,0.3608]
[1757947869292,0.40325979,114950.0,114940.0,0.3608]
[1757947870691,0.40325979,114950.0,114930.0,0.0001]
[1757947870692,0.03434,114940.0,114930.0,0.0001]
[1757947870992,0.03434,114930.0,114920.0,0.0001]
[1757947871190,0.03434,114930.0,114910.0,0.3609]
[1757947871191,0.03434,114920.0,114910.0,0.0001]
[1757947871487,0.03434,114910.0,114900.0,0.0001]
[1757947871693,0.03434,114900.0,114890.0,0.38247]
[1757947871994,1.54467644,114900.0,114890.0,0.02157]
[1757947872299,1.17933523,114900.0,114890.0,0.02157]
[1757947872586,1.20138384,114900.0,114890.0,0.38237]
[1757947873087,1.20138384,114900.0,114890.0,0.02157]
[1757947873391,1.17941523,114900.0,114890.0,0.38437]
[1757947874194,1.17941523,114900.0,114890.0,0.02357]
[1757947874491,1.20135864,114900.0,114890.0,0.02557]
[1757947875196,1.20107864,114900.0,114890.0,0.02357]
[1757947875394,1.20107864,114900.0,114890.0,0.02557]
[1757947875589,1.2700432,114900.0,114890.0,0.02557]
[1757947875991,0.4686832,114900.0,114890.0,0.02557]
[1757947876192,1.2699632,114900.0,114890.0,0.02457]
[1757947877087,0.4686832,114900.0,114890.0,0.02457]
[1757947877291,1.2698032,114900.0,114890.0,0.02457]
[1757947877588,1.2698032,114900.0,114890.0,0.02257]
[1757947878593,0.4686832,114900.0,114890.0,0.02257]
[1757947878901,1.2698032,114900.0,114890.0,0.02257]
[1757947879500,1.24785979,114900.0,114890.0,0.02257]
[1757947879802,1.59129502,114900.0,114890.0,0.001]
[1757947880001,2.20209502,114900.0,114890.0,0.001]
[1757947880300,2.22401207,114900.0,114890.0,0.001]
[1757947881699,2.22501207,114900.0,114890.0,0.001]
[1757947882805,0.03434,114860.0,114850.0,1.8208]
[1757947882997,1.17901523,114860.0,114850.0,1.8208]
[1757947883303,1.17901523,114860.0,114850.0,1.46]
[1757947883896,1.17901523,114860.0,114850.0,1.463]
[1757947884298,1.17901523,114860.0,114850.0,1.466]
[1757947885206,1.24863737,114860.0,114850.0,1.466]
[1757947885394,1.27050595,114860.0,114850.0,1.466]
[1757947885600,1.63130595,114860.0,114850.0,1.466]
[1757947887002,1.63130595,114860.0,114850.0,1.464]
[1757947887400,1.63130595,114860.0,114850.0,1.463]
[1757947887710,1.63996828,114860.0,114850.0,1.463]
[1757947888501,1.63986049,114860.0,114850.0,0.003]
[1757947888801,0.83862049,114860.0,114850.0,0.003]
[1757947888998,1.64006049,114860.0,114850.0,0.003]
[1757947889204,0.83862049,114860.0,114850.0,0.003]
[1757947889602,0.83862049,114860.0,114850.0,0.0262]
[1757947889803,0.47782049,114860.0,114850.0,0.387]
[1757947890106,1.2574997,114860.0,114850.0,0.387]
[1757947890308,1.27925228,114860.0,114850.0,0.387]
[1757947890603,1.2574997,114860.0,114850.0,0.387]
[1757947891007,1.2574997,114860.0,114850.0,0.40029]
[1757947891605,0.4560597,114860.0,114850.0,0.40029]
[1757947891805,0.09130214,114860.0,114850.0,0.65029]
[1757947895800,0.06962214,114860.0,114850.0,0.65029]
[1757947896009,0.01791976,114870.0,114850.0,0.65029]
[1757947896204,0.03988976,114870.0,114860.0,0.39729]
[1757947897009,0.04878406,114870.0,114860.0,0.39729]
[1757947897803,0.06172406,114870.0,114860.0,0.39829]
[1757947898206,0.0705939,114870.0,114860.0,0.39829]
[1757947898509,0.51057606,114870.0,114860.0,0.385]
[1757947898711,0.51057606,114870.0,114860.0,0.0242]
[1757947899417,0.51057606,114870.0,114860.0,0.001]
[1757947899914,0.51057606,114870.0,114860.0,0.002]
[1757947900314,0.9025257,114870.0,114860.0,0.002]
[1757947900507,1.16816035,114870.0,114860.0,0.002]
[1757947903018,1.09956622,114870.0,114860.0,0.002]
[1757947905216,1.16827439,114870.0,114860.0,0.002]
[1757947905416,1.15266648,114870.0,114860.0,0.002]
[1757947905618,1.16827439,114870.0,114860.0,0.002]
[1757947905818,1.27883415,114870.0,114860.0,0.002]
[1757947907119,1.29444708,114870.0,114860.0,0.002]
[1757947907318,2.09600708,114870.0,114860.0,0.002]
[1757947909822,2.03355535,114870.0,114860.0,0.002]
[1757947911121,2.03355535,114870.0,114860.0,0.0252]
[1757947911322,1.23199535,114870.0,114860.0,0.0252]
[1757947911518,2.03355535,114870.0,114860.0,0.0252]
[1757947911721,1.38245259,114870.0,114860.0,0.0252]
[1757947911916,1.17937981,114870.0,114860.0,0.0252]
[1757947912222,1.27611023,114870.0,114860.0,0.0252]
[1757947912419,0.49007474,114870.0,114860.0,0.2752]
[1757947912620,0.42762301,114870.0,114860.0,0.2752]
[1757947912810,1.27607751,114870.0,114860.0,0.99287958]
[1757947913014,1.27607751,114870.0,114860.0,0.64885]
[1757947913215,0.47455751,114870.0,114860.0,0.64885]
[1757947913413,1.29851022,114870.0,114860.0,0.99287958]
[1757947913618,0.49695022,114870.0,114860.0,0.99287958]
[1757947913814,0.48401022,114870.0,114860.0,0.99287958]
[1757947914020,0.41510572,114870.0,114860.0,0.99287958]
[1757947914228,0.38381871,114870.0,114860.0,0.99287958]
[1757947914519,0.40488871,114870.0,114860.0,0.99287958]
[1757947915927,0.38381871,114870.0,114860.0,0.99287958]
[1757947916823,0.38379553,114870.0,114860.0,0.99287958]
[1757947917125,0.40616553,114870.0,114860.0,0.99287958]
[1757947917822,0.38379553,114870.0,114860.0,0.99287958]
[1757947918421,0.03976595,114870.0,114860.0,0.99287958]
[1757947918622,0.02184619,114870.0,114860.0,1.35695093]
[1757947919334,0.36587577,114870.0,114860.0,1.47037177]
[1757947919522,0.36587577,114870.0,114860.0,1.81440135]
[1757947919829,0.02184619,114870.0,114860.0,1.81440135]
[1757947920027,0.36587577,114870.0,114860.0,1.81440135]
[1757947920332,0.36587577,114870.0,114860.0,1.01292135]
[1757947920522,0.02184619,114870.0,114860.0,1.01292135]
[1757947920717,0.36587577,114870.0,114860.0,1.01292135]
[1757947921331,0.02184619,114870.0,114860.0,1.01292135]
[1757947921529,0.02184619,114870.0,114860.0,1.81436135]
[1757947922535,0.02184619,114870.0,114860.0,1.01292135]
[1757947922832,0.36587577,114870.0,114860.0,1.81436135]
[1757947923427,0.02184619,114870.0,114860.0,1.81436135]
[1757947923627,0.36587577,114870.0,114860.0,1.81436135]
[1757947923928,0.02184619,114870.0,114860.0,1.81436135]
[1757947924128,0.36587577,114870.0,114860.0,1.81436135]
[1757947924325,0.02184619,114870.0,114860.0,2.15839093]
[1757947924529,0.36649958,114890.0,114880.0,0.03656]
[1757947924723,0.38832698,114890.0,114880.0,0.74138958]
[1757947924919,0.38832698,114890.0,114880.0,0.39736]
[1757947925123,0.38832698,114890.0,114880.0,0.74138958]
[1757947925720,0.38932698,114890.0,114880.0,0.74138958]
[1757947927234,0.39032698,114890.0,114880.0,0.74138958]
[1757947927935,0.39032698,114890.0,114880.0,0.39736]
[1757947928135,0.40425698,114890.0,114880.0,0.38372]
[1757947929235,0.99828656,114890.0,114880.0,0.02292]
[1757947930431,0.65425698,114890.0,114880.0,0.02292]
[1757947930931,1.1115074,114890.0,114880.0,0.02292]
[1757947931138,1.45553698,114890.0,114880.0,0.02292]
[1757947931336,1.45553698,114890.0,114880.0,0.38372]
[1757947931539,0.64032698,114890.0,114880.0,0.39736]
[1757947931837,0.36849958,114890.0,114880.0,0.39736]
[1757947932133,0.38242958,114890.0,114880.0,0.38372]
[1757947932329,0.38142958,114890.0,114880.0,0.38372]
[1757947934240,0.38042958,114890.0,114880.0,0.38372]
[1757947934833,0.72445916,114890.0,114880.0,0.38372]
[1757947935039,0.01393,114880.0,114870.0,1.16214]
[1757947935236,0.70198916,114880.0,114870.0,1.16204]
[1757947936241,0.70198916,114880.0,114870.0,1.16304]
[1757947937540,0.72435916,114880.0,114870.0,0.38472]
[1757947938342,0.72435916,114880.0,114870.0,0.38572]
[1757947938846,0.72435916,114880.0,114870.0,0.38472]
[1757947939045,0.72435916,114880.0,114870.0,0.39836]
[1757947939344,0.72435916,114880.0,114870.0,0.39736]
[1757947940349,0.71042916,114880.0,114870.0,0.39736]
[1757947940536,0.01403,114890.0,114870.0,0.74138958]
[1757947940743,0.05823319,114890.0,114880.0,0.38372]
[1757947941142,0.05824181,114890.0,114880.0,0.38372]
[1757947941848,0.38834139,114890.0,114880.0,0.39736]
[1757947942044,0.38834139,114890.0,114880.0,1.54254958]
[1757947942348,0.0001,114890.0,114880.0,1.54254958]
[1757947942839,0.0001,114890.0,114880.0,1.79254958]
[1757947943042,0.0001,114890.0,114880.0,2.13657916]
[1757947943249,0.0001,114890.0,114880.0,2.22359466]
[1757947943550,0.0001,114890.0,114880.0,2.2321019]
[1757947943747,0.0001,114890.0,114880.0,2.25273081]
[1757947944146,0.01743333,114910.0,114900.0,0.03656]
[1757947944347,0.38330019,114910.0,114900.0,1.54254958]
[1757947945152,0.36146291,114910.0,114900.0,1.54254958]
[1757947945450,0.38629253,114910.0,114900.0,1.54254958]
[1757947946254,0.36446291,114910.0,114900.0,1.54254958]
[1757947946454,0.38683291,114910.0,114900.0,0.74138958]
[1757947946753,0.38683291,114910.0,114900.0,1.54250958]
[1757947947051,0.38683291,114910.0,114900.0,1.90330958]
[1757947947246,0.36446291,114910.0,114900.0,1.90330958]
[1757947947948,0.02043333,114910.0,114900.0,2.24733916]
[1757947948148,0.02043333,114910.0,114900.0,2.49733916]
[1757947948948,0.003,114910.0,114900.0,2.49733916]
[1757947949156,0.003,114910.0,114900.0,2.5176477]
[1757947949347,0.003,114910.0,114900.0,2.5175677]
[1757947950652,0.003,114910.0,114900.0,1.7165277]
[1757947950854,0.003,114910.0,114900.0,2.5175277]
[1757947951054,0.34702958,114910.0,114900.0,2.17349812]
[1757947951549,0.34602958,114910.0,114900.0,2.17349812]
[1757947951757,0.002,114910.0,114900.0,2.17349812]
[1757947951958,0.34602958,114910.0,114900.0,2.17349812]
[1757947952255,0.34602958,114910.0,114900.0,2.17345812]
[1757947952651,0.34602958,114910.0,114900.0,1.37249812]
[1757947952855,0.34602958,114910.0,114900.0,2.17345812]
[1757947953053,0.34602958,114910.0,114900.0,1.02846854]
[1757947953257,0.34602958,114910.0,114900.0,1.82942854]
[1757947953457,0.002,114910.0,114900.0,2.17345812]
[1757947953654,0.34602958,114910.0,114900.0,2.17345812]
[1757947953956,0.34602958,114910.0,114900.0,1.37249812]
[1757947954158,0.34602958,114910.0,114900.0,2.17341812]
[1757947955351,0.34602958,114910.0,114900.0,1.37249812]
[1757947955557,0.34602958,114910.0,114900.0,2.17341812]
[1757947955756,0.34602958,114910.0,114900.0,1.82938854]
[1757947955957,0.34602958,114910.0,114900.0,2.17341812]
[1757947956154,0.002,114910.0,114900.0,2.17341812]
[1757947956354,0.34602958,114910.0,114900.0,2.17341812]
[1757947956555,0.34602958,114910.0,114900.0,1.37249812]
[1757947956859,0.34602958,114910.0,114900.0,2.17341812]
[1757947959363,0.34602958,114910.0,114900.0,1.92341812]
[1757947961160,0.002,114910.0,114900.0,2.354448]
[1757947961358,0.002,114910.0,114900.0,2.604448]
[1757947962663,0.37573917,114940.0,114930.0,0.03483]
[1757947962664,0.38356917,114940.0,114930.0,0.03483]
[1757947962858,0.38356917,114940.0,114930.0,0.73965958]
[1757947962859,0.40532178,114940.0,114930.0,0.73965958]
[1757947963255,0.47395622,114940.0,114930.0,0.73965958]
[1757947964668,0.45219622,114940.0,114930.0,0.73965958]
[1757947965069,0.45519622,114940.0,114930.0,0.73965958]
[1757947965367,0.02077959,114940.0,114930.0,0.73965958]
[1757947965571,0.02477959,114940.0,114930.0,0.73965958]
[1757947965763,0.007,114940.0,114930.0,0.75932825]
[1757947966377,0.007,114940.0,114930.0,0.84630585]
[1757947966562,0.007,114940.0,114930.0,0.75932825]
[1757947967171,0.007,114940.0,114930.0,0.84630585]
[1757947967367,0.007,114940.0,114930.0,0.75932825]
[1757947967570,0.007,114940.0,114930.0,0.41596454]
[1757947967768,0.007,114940.0,114930.0,1.56000825]
[1757947968772,0.007,114940.0,114930.0,1.21664454]
[1757947968968,0.007,114940.0,114930.0,1.56000825]
[1757947969675,0.007,114940.0,114930.0,1.81000825]
[1757947969974,0.007,114940.0,114930.0,1.00932825]
[1757947970274,0.007,114940.0,114930.0,1.80996825]
[1757947970476,0.007,114940.0,114930.0,1.00932825]
[1757947970774,0.007,114940.0,114930.0,1.80992825]
[1757947971169,0.007,114940.0,114930.0,1.89690585]
[1757947971362,0.007,114940.0,114930.0,1.09630585]
[1757947971566,0.007,114940.0,114930.0,1.00932825]
[1757947971770,0.007,114940.0,114930.0,1.80992825]
[1757947976269,0.007,114940.0,114930.0,1.89690585]
[1757947976477,0.007,114940.0,114930.0,1.80992825]
[1757947977581,0.007,114940.0,114930.0,1.00932825]
[1757947977985,0.007,114940.0,114930.0,1.80980825]
[1757947978380,0.007,114940.0,114930.0,1.00932825]
[1757947978582,0.37271371,114940.0,114930.0,1.21640454]
[1757947978782,0.39447459,114940.0,114930.0,1.21640454]
[1757947978983,0.37271371,114940.0,114930.0,1.21640454]
[1757947979485,0.39447614,114940.0,114930.0,1.21640454]
[1757947980582,0.05111243,114940.0,114930.0,1.21640454]
[1757947981382,0.02935,114940.0,114930.0,1.21640454]
[1757947982184,0.02935,114940.0,114930.0,0.41596454]
[1757947982391,0.63616371,114940.0,114930.0,0.40272454]
[1757947982575,0.65793029,114940.0,114930.0,1.20312454]
[1757947983279,0.65793029,114940.0,114930.0,0.40272454]
[1757947985286,0.65793029,114940.0,114930.0,0.38113454]
[1757947985585,1.01873029,114940.0,114930.0,0.02033454]
[1757947985783,1.362094,114940.0,114930.0,0.02033454]
[1757947986184,1.39338101,114940.0,114930.0,0.02033454]
[1757947986386,0.0358,114930.0,114920.0,0.02121]
[1757947986586,0.0358,114930.0,114920.0,0.02111]
[1757947986587,0.744294,114930.0,114920.0,0.02111]
[1757947987285,0.0358,114920.0,114910.0,0.40202211]
[1757947987484,0.40093029,114920.0,114910.0,0.40192211]
[1757947988684,0.47000114,114920.0,114910.0,0.40192211]
[1757947989493,0.47100114,114920.0,114910.0,0.40192211]
[1757947989681,0.72100114,114920.0,114910.0,0.02001211]
[1757947989879,0.72100114,114920.0,114910.0,0.04112211]
[1757947990083,0.72300114,114920.0,114910.0,0.04112211]
[1757947991490,0.72300114,114920.0,114910.0,0.02001211]
[1757947991792,0.0358,114910.0,114900.0,0.02040854]
[1757947991983,0.40094276,114910.0,114900.0,0.02030854]
[1757947992182,1.20134276,114910.0,114900.0,0.02030854]
[1757947993291,0.40094276,114910.0,114900.0,0.02030854]
[1757947993488,1.20134276,114910.0,114900.0,0.02030854]
[1757947993693,1.20134276,114910.0,114900.0,0.04141854]
[1757947993996,0.40194276,114910.0,114900.0,0.04141854]
[1757947994189,1.20234276,114910.0,114900.0,0.04141854]
[1757947994490,1.46099129,114910.0,114900.0,0.02030854]
[1757947994793,0.0358,114900.0,114890.0,0.0001]
[1757947994992,0.0358,114890.0,114880.0,0.38201]
[1757947995288,0.37916371,114890.0,114880.0,0.38191]
[1757947995487,0.40090111,114890.0,114880.0,0.38191]
[1757947996083,0.37916371,114890.0,114880.0,0.38191]
[1757947996796,0.37916371,114890.0,114880.0,0.38291]
[1757947998290,0.37916371,114890.0,114880.0,0.38391]
[1757948003494,0.40086389,114890.0,114880.0,0.38391]
[1757948004798,0.37916371,114890.0,114880.0,0.38391]
[1757948005298,0.40086889,114890.0,114880.0,0.38391]
[1757948007188,1.20134889,114890.0,114880.0,0.38391]
[1757948011204,1.20134889,114890.0,114880.0,0.02311]
[1757948011898,1.20134889,114890.0,114880.0,0.38391]
[1757948015800,0.40086889,114890.0,114880.0,0.38391]
[1757948016104,1.20130889,114890.0,114880.0,0.38391]
[1757948017703,0.40086889,114890.0,114880.0,0.38391]
[1757948017898,1.20126889,114890.0,114880.0,0.38391]
[1757948021000,0.40086889,114890.0,114880.0,0.38391]
[1757948021304,1.2325159,114890.0,114880.0,0.38391]
[1757948022409,1.2794504,114890.0,114880.0,0.38391]
[1757948022606,1.2325159,114890.0,114880.0,0.38391]
[1757948026301,0.08879219,114890.0,114880.0,0.38391]
[1757948026505,0.4321559,114890.0,114880.0,0.38391]
[1757948026707,0.4321559,114890.0,114880.0,0.39784]
[1757948027202,0.4187059,114890.0,114880.0,0.39784]
[1757948027404,0.04405518,114890.0,114880.0,0.64784]
[1757948027708,0.02170518,114890.0,114880.0,0.64784]
[1757948027909,0.3654463,114890.0,114880.0,0.99158112]
[1757948028105,0.02170518,114890.0,114880.0,1.79186112]
[1757948028409,0.02170518,114890.0,114880.0,2.13560224]
[1757948028910,0.38333716,114900.0,114890.0,0.03498]
[1757948029109,0.40508467,114900.0,114890.0,0.73952112]
[1757948029306,0.40508467,114900.0,114890.0,1.53976112]
[1757948029898,0.40508467,114900.0,114890.0,1.18209]
[1757948029899,0.76149579,114900.0,114890.0,1.18209]
[1757948030098,0.76149579,114900.0,114890.0,0.38185]
[1757948033906,2.15535691,114900.0,114890.0,0.02105]
[1757948034114,0.03506,114890.0,114880.0,0.3838]
[1757948034308,0.74438975,114890.0,114880.0,0.3837]
[1757948034611,0.40064863,114890.0,114880.0,0.3837]
[1757948034814,0.74438975,114890.0,114880.0,0.3837]
[1757948035014,0.40064863,114890.0,114880.0,0.3837]
[1757948035711,0.40064863,114890.0,114880.0,0.3847]
[1757948037213,0.40064863,114890.0,114880.0,0.3857]
[1757948039915,0.74438975,114890.0,114880.0,0.3857]
[1757948040111,1.10518975,114890.0,114880.0,0.0249]
[1757948040317,0.74438975,114890.0,114880.0,0.0249]
[1757948043515,1.69893087,114890.0,114880.0,0.002]
[1757948043721,1.35518975,114890.0,114880.0,0.002]
[1757948044616,2.15518975,114890.0,114880.0,0.002]
[1757948044823,2.15514975,114890.0,114880.0,0.002]
[1757948045622,1.35518975,114890.0,114880.0,0.002]
[1757948045825,2.15514975,114890.0,114880.0,0.002]
[1757948046624,1.35518975,114890.0,114880.0,0.002]
[1757948046825,2.15514975,114890.0,114880.0,0.02467]
[1757948047527,1.35518975,114890.0,114880.0,0.002]
[1757948047720,2.15514975,114890.0,114880.0,0.002]
[1757948047927,1.35518975,114890.0,114880.0,0.02467]
[1757948048122,2.15510975,114890.0,114880.0,0.02467]
[1757948049332,1.35518975,114890.0,114880.0,0.02467]
[1757948049834,2.15510975,114890.0,114880.0,0.02467]
[1757948050133,1.35518975,114890.0,114880.0,0.02467]
[1757948050333,1.79430975,114890.0,114880.0,0.02467]
[1757948051127,0.99438975,114890.0,114880.0,0.02467]
[1757948051530,1.54430975,114890.0,114880.0,0.02467]
[1757948052821,0.74438975,114890.0,114880.0,0.02467]
[1757948053028,1.54426975,114890.0,114880.0,0.02467]
[1757948053632,0.05690751,114890.0,114880.0,0.02467]
[1757948053837,1.20052863,114890.0,114880.0,0.27467]
[1757948054131,1.20052863,114890.0,114880.0,0.02467]
[1757948054633,1.20052863,114890.0,114880.0,0.38547]
[1757948055929,1.54426975,114890.0,114880.0,0.38547]
[1757948056431,1.54426975,114890.0,114880.0,0.02467]
[1757948056831,1.54426975,114890.0,114880.0,0.002]
[1757948057134,1.90506975,114890.0,114880.0,0.002]
[1757948060642,0.74438975,114890.0,114880.0,0.02467]
[1757948060830,1.54414975,114890.0,114880.0,0.02467]
[1757948061439,0.74438975,114890.0,114880.0,0.02467]
[1757948061640,1.20040863,114890.0,114880.0,0.38547]
[1757948062033,1.54414975,114890.0,114880.0,0.38547]
[1757948063734,1.54414975,114890.0,114880.0,0.02467]
[1757948063935,1.54410975,114890.0,114880.0,0.02467]
[1757948064834,1.90490975,114890.0,114880.0,0.002]
[1757948065136,1.54410975,114890.0,114880.0,0.02467]
[1757948065337,1.54410975,114890.0,114880.0,0.002]
[1757948065641,1.90490975,114890.0,114880.0,0.002]
[1757948069048,0.03509,114880.0,114870.0,0.0001]
[1757948069343,0.03509,114870.0,114860.0,0.0001]
[1757948069535,0.03509,114870.0,114850.0,0.38332]
[1757948069536,0.03509,114860.0,114850.0,0.38332]
[1757948069733,0.74440041,114860.0,114850.0,0.02242]
[1757948070445,0.74140041,114860.0,114850.0,0.02242]
[1757948070844,0.73940041,114860.0,114850.0,0.02242]
[1757948071142,0.73940041,114860.0,114850.0,0.02742]
[1757948071544,1.53904041,114860.0,114850.0,0.02742]
[1757948071842,0.73940041,114860.0,114850.0,0.02742]
[1757948072045,1.53900041,114860.0,114850.0,0.02742]